[Event "Titled Tuesday Blitz May 2 Early 2023"]
[White "Madaminov, Mukhiddin"]
[Black "Saya, Ethan"]
[WhiteFideId "14210703"]
[BlackFideId "26095181"]
[WhiteElo "2511"]
[BlackElo "2189"]
[Result "1-0"]
[Round "01"]
[TimeControl "180+2"]
[Date "2023.05.02"]
[WhiteClock "0:00:00"]
[BlackClock "0:00:00"]

1. d4 {[%clk 0:00:01]}  Nf6 {[%clk 0:00:01]} 2. Nc3 {[%clk 0:00:01]}  e6 {[%clk 0:00:01]} 3. Bf4 {[%clk 0:00:01]}  d5 {[%clk 0:00:01]} 4. Nb5 {[%clk 0:00:01]}  Bd6 {[%clk 0:00:01]} 5. Nxd6+ {[%clk 0:00:01]}  cxd6 {[%clk 0:00:01]} 6. c3 {[%clk 0:00:01]}  Nc6 {[%clk 0:00:01]} 7. Nf3 {[%clk 0:00:01]}  O-O {[%clk 0:00:01]} 8. e3 {[%clk 0:00:01]}  Re8 {[%clk 0:00:01]} 9. Be2 {[%clk 0:00:01]}  e5 {[%clk 0:00:01]} 10. Bg5 {[%clk 0:00:01]}  Be6 {[%clk 0:00:01]} 11. O-O {[%clk 0:00:01]}  Rc8 {[%clk 0:00:01]} 12. Qb3 {[%clk 0:00:01]}  Na5 {[%clk 0:00:01]} 13. Qa3 {[%clk 0:00:01]}  a6 {[%clk 0:00:01]} 14. dxe5 {[%clk 0:00:01]}  dxe5 {[%clk 0:00:01]} 15. Nxe5 {[%clk 0:00:01]}  Nc4 {[%clk 0:00:01]} 16. Nxc4 {[%clk 0:00:01]}  dxc4 {[%clk 0:00:01]} 17. Rad1 {[%clk 0:00:01]}  Qe7 {[%clk 0:00:01]} 18. Qxe7 {[%clk 0:00:01]}  Rxe7 {[%clk 0:00:01]} 19. Bxf6 {[%clk 0:00:01]}  gxf6 {[%clk 0:00:01]} 20. Rd6 {[%clk 0:00:01]}  Rc5 {[%clk 0:00:01]} 21. Rfd1 {[%clk 0:00:01]}  Rb5 {[%clk 0:00:01]} 22. b4 {[%clk 0:00:01]}  Rg5 {[%clk 0:00:00]} 23. f4 {[%clk 0:00:01]}  Rg6 {[%clk 0:00:00]} 24. Kf2 {[%clk 0:00:01]}  Kg7 {[%clk 0:00:00]} 25. a4 {[%clk 0:00:01]}  Rh6 {[%clk 0:00:00]} 26. h3 {[%clk 0:00:01]}  f5 {[%clk 0:00:00]} 27. a5 {[%clk 0:00:01]}  Kf6 {[%clk 0:00:00]} 28. Bxc4 {[%clk 0:00:01]}  Rc7 {[%clk 0:00:00]} 29. Bxe6 {[%clk 0:00:01]}  fxe6 {[%clk 0:00:00]} 30. R1d3 {[%clk 0:00:01]}  Rg6 {[%clk 0:00:00]} 31. g3 {[%clk 0:00:00]}  Rgg7 {[%clk 0:00:00]} 32. Kf3 {[%clk 0:00:00]}  h5 {[%clk 0:00:00]} 33. e4 {[%clk 0:00:00]}  fxe4+ {[%clk 0:00:00]} 34. Kxe4 {[%clk 0:00:00]}  Rc4+ {[%clk 0:00:00]} 35. R6d4 {[%clk 0:00:00]}  Rcc7 {[%clk 0:00:00]} 36. c4 {[%clk 0:00:00]}  Rg8 {[%clk 0:00:00]} 37. c5 {[%clk 0:00:00]}  Ke7 {[%clk 0:00:00]} 38. Rd6 {[%clk 0:00:00]}  Rg6 {[%clk 0:00:00]} 39. Rb6 {[%clk 0:00:00]}  Kf7 {[%clk 0:00:00]} 40. Kf3 {[%clk 0:00:00]}  Ke7 {[%clk 0:00:00]} 41. g4 {[%clk 0:00:00]}  hxg4+ {[%clk 0:00:00]} 42. hxg4 {[%clk 0:00:00]}  Rh6 {[%clk 0:00:00]} 43. Ke4 {[%clk 0:00:00]}  Rh4 {[%clk 0:00:00]} 44. Ke5 {[%clk 0:00:00]}  Rxg4 {[%clk 0:00:00]} 45. Rxe6+ {[%clk 0:00:00]}  Kf7 {[%clk 0:00:00]} 46. Rh3 {[%clk 0:00:00]}  Kg7 {[%clk 0:00:00]} 47. Rh5 {[%clk 0:00:00]}  Rd7 {[%clk 0:00:00]} 48. Rg5+ {[%clk 0:00:00]}  Rxg5+ {[%clk 0:00:00]} 49. fxg5 {[%clk 0:00:00]}  Kf7 {[%clk 0:00:00]} 50. c6 {[%clk 0:00:00]}  bxc6 {[%clk 0:00:00]} 51. Rxc6 {[%clk 0:00:00]}  Rb7 {[%clk 0:00:00]} 52. Rb6 {[%clk 0:00:00]}  Re7+ {[%clk 0:00:00]} 53. Kf5 {[%clk 0:00:00]}  Re1 {[%clk 0:00:00]} 54. Rf6+ {[%clk 0:00:00]}  Kg7 {[%clk 0:00:00]} 55. Rxa6 {[%clk 0:00:00]}  Rf1+ {[%clk 0:00:00]} 56. Ke5 {[%clk 0:00:00]}  Rb1 {[%clk 0:00:00]} 57. Rb6 {[%clk 0:00:00]} 1-0


[Site "https://www.chess.com"]

[Event "Titled Tuesday Blitz May 2 Early 2023"]
[White "Chernov, Mikhail"]
[Black "Mekhitarian, Krikor Sevag"]
[WhiteFideId "24143170"]
[BlackFideId "2107660"]
[WhiteElo "2113"]
[BlackElo "2604"]
[Result "0-1"]
[Round "01"]
[TimeControl "180+2"]
[Date "2023.05.02"]
[WhiteClock "0:00:00"]
[BlackClock "0:00:00"]

1. d4 {[%clk 0:00:01]}  Nf6 {[%clk 0:00:01]} 2. Nc3 {[%clk 0:00:01]}  d5 {[%clk 0:00:01]} 3. Bf4 {[%clk 0:00:01]}  a6 {[%clk 0:00:01]} 4. e3 {[%clk 0:00:01]}  Bf5 {[%clk 0:00:01]} 5. Nf3 {[%clk 0:00:01]}  e6 {[%clk 0:00:01]} 6. Ne5 {[%clk 0:00:01]}  h6 {[%clk 0:00:01]} 7. g4 {[%clk 0:00:01]}  Bh7 {[%clk 0:00:01]} 8. h4 {[%clk 0:00:01]}  Nfd7 {[%clk 0:00:01]} 9. f3 {[%clk 0:00:01]}  Nxe5 {[%clk 0:00:01]} 10. Bxe5 {[%clk 0:00:01]}  c5 {[%clk 0:00:01]} 11. Qd2 {[%clk 0:00:01]}  Nc6 {[%clk 0:00:01]} 12. Bg3 {[%clk 0:00:01]}  cxd4 {[%clk 0:00:01]} 13. exd4 {[%clk 0:00:01]}  Nb4 {[%clk 0:00:01]} 14. Rc1 {[%clk 0:00:01]}  Rc8 {[%clk 0:00:01]} 15. a3 {[%clk 0:00:01]}  Nc6 {[%clk 0:00:01]} 16. Bd3 {[%clk 0:00:01]}  Nxd4 {[%clk 0:00:01]} 17. O-O {[%clk 0:00:01]}  Bc5 {[%clk 0:00:01]} 18. Kg2 {[%clk 0:00:01]}  Bxd3 {[%clk 0:00:01]} 19. Qxd3 {[%clk 0:00:01]}  Nc6 {[%clk 0:00:01]} 20. Rce1 {[%clk 0:00:01]}  O-O {[%clk 0:00:01]} 21. Ne2 {[%clk 0:00:00]}  Bd6 {[%clk 0:00:01]} 22. Bxd6 {[%clk 0:00:00]}  Qxd6 {[%clk 0:00:01]} 23. Ng3 {[%clk 0:00:00]}  Ne5 {[%clk 0:00:00]} 24. Qe2 {[%clk 0:00:00]}  Nc4 {[%clk 0:00:00]} 25. c3 {[%clk 0:00:00]}  Qb6 {[%clk 0:00:00]} 26. Rf2 {[%clk 0:00:00]}  Qc7 {[%clk 0:00:00]} 27. g5 {[%clk 0:00:00]}  Qf4 {[%clk 0:00:00]} 28. gxh6 {[%clk 0:00:00]}  Qxh6 {[%clk 0:00:00]} 29. h5 {[%clk 0:00:00]}  Kh8 {[%clk 0:00:00]} 30. f4 {[%clk 0:00:00]}  Rce8 {[%clk 0:00:00]} 31. f5 {[%clk 0:00:00]}  exf5 {[%clk 0:00:00]} 32. Qxe8 {[%clk 0:00:00]}  Rxe8 {[%clk 0:00:00]} 33. Rxe8+ {[%clk 0:00:00]}  Kh7 {[%clk 0:00:00]} 34. Nxf5 {[%clk 0:00:00]}  Qg5+ {[%clk 0:00:00]} 35. Kh2 {[%clk 0:00:00]}  Nd2 {[%clk 0:00:00]} 36. Ng3 {[%clk 0:00:00]}  Ne4 {[%clk 0:00:00]} 37. Nxe4 {[%clk 0:00:00]}  dxe4 {[%clk 0:00:00]} 38. Rxe4 {[%clk 0:00:00]}  Qxh5+ {[%clk 0:00:00]} 39. Kg1 {[%clk 0:00:00]}  Qg5+ {[%clk 0:00:00]} 40. Kf1 {[%clk 0:00:00]}  Qc1+ {[%clk 0:00:00]} 41. Re1 {[%clk 0:00:00]}  Qh6 {[%clk 0:00:00]} 42. Rxf7 {[%clk 0:00:00]}  Qh1+ {[%clk 0:00:00]} 43. Ke2 {[%clk 0:00:00]}  Qe4+ {[%clk 0:00:00]} 44. Kf2 {[%clk 0:00:00]}  Qh4+ {[%clk 0:00:00]} 45. Kf1 {[%clk 0:00:00]}  Qc4+ {[%clk 0:00:00]} 0-1


[Site "https://www.chess.com"]

[Event "Titled Tuesday Blitz May 2 Early 2023"]
[White "Bernadskiy, Vitaliy"]
[Black "Lucas, Arthur"]
[WhiteFideId "14100371"]
[BlackFideId "26093073"]
[WhiteElo "2488"]
[BlackElo "2251"]
[Result "1-0"]
[Round "01"]
[TimeControl "180+2"]
[Date "2023.05.02"]
[WhiteClock "0:00:00"]
[BlackClock "0:00:00"]

1. d4 {[%clk 0:00:01]}  Nf6 {[%clk 0:00:01]} 2. c4 {[%clk 0:00:01]}  g6 {[%clk 0:00:01]} 3. Nc3 {[%clk 0:00:01]}  Bg7 {[%clk 0:00:01]} 4. e4 {[%clk 0:00:01]}  d6 {[%clk 0:00:01]} 5. Be2 {[%clk 0:00:01]}  O-O {[%clk 0:00:01]} 6. Nf3 {[%clk 0:00:01]}  Na6 {[%clk 0:00:01]} 7. Bg5 {[%clk 0:00:01]}  Qe8 {[%clk 0:00:01]} 8. O-O {[%clk 0:00:01]}  e5 {[%clk 0:00:01]} 9. d5 {[%clk 0:00:01]}  h6 {[%clk 0:00:01]} 10. Bh4 {[%clk 0:00:01]}  g5 {[%clk 0:00:01]} 11. Bg3 {[%clk 0:00:01]}  Nc5 {[%clk 0:00:01]} 12. Nd2 {[%clk 0:00:01]}  Nfxe4 {[%clk 0:00:01]} 13. Ndxe4 {[%clk 0:00:01]}  Nxe4 {[%clk 0:00:01]} 14. Nxe4 {[%clk 0:00:01]}  f5 {[%clk 0:00:01]} 15. Bd3 {[%clk 0:00:01]}  fxe4 {[%clk 0:00:01]} 16. Bxe4 {[%clk 0:00:01]}  h5 {[%clk 0:00:01]} 17. f3 {[%clk 0:00:01]}  b6 {[%clk 0:00:01]} 18. Qd2 {[%clk 0:00:01]}  Bh6 {[%clk 0:00:01]} 19. Bf2 {[%clk 0:00:01]}  Kg7 {[%clk 0:00:00]} 20. Be3 {[%clk 0:00:01]}  Qe7 {[%clk 0:00:00]} 21. h4 {[%clk 0:00:01]}  Rf4 {[%clk 0:00:00]} 22. g3 {[%clk 0:00:01]}  Bh3 {[%clk 0:00:00]} 23. gxf4 {[%clk 0:00:01]}  gxf4 {[%clk 0:00:00]} 24. Bf2 {[%clk 0:00:01]}  Kh8 {[%clk 0:00:00]} 25. Kh2 {[%clk 0:00:01]}  Bc8 {[%clk 0:00:00]} 26. Rh1 {[%clk 0:00:00]}  Bd7 {[%clk 0:00:00]} 27. Rag1 {[%clk 0:00:00]} 1-0


[Site "https://www.chess.com"]

[Event "Titled Tuesday Blitz May 2 Early 2023"]
[White "Miszler, Levente"]
[Black "Rustemov, Alexander"]
[WhiteFideId "763276"]
[BlackFideId "4119002"]
[WhiteElo "2176"]
[BlackElo "2525"]
[Result "0-1"]
[Round "01"]
[TimeControl "180+2"]
[Date "2023.05.02"]
[WhiteClock "0:00:01"]
[BlackClock "0:00:01"]

1. Nf3 {[%clk 0:00:01]}  d5 {[%clk 0:00:01]} 2. c4 {[%clk 0:00:01]}  c6 {[%clk 0:00:01]} 3. g3 {[%clk 0:00:01]}  Nf6 {[%clk 0:00:01]} 4. Bg2 {[%clk 0:00:01]}  dxc4 {[%clk 0:00:01]} 5. O-O {[%clk 0:00:01]}  Be6 {[%clk 0:00:01]} 6. a4 {[%clk 0:00:01]}  g6 {[%clk 0:00:01]} 7. Na3 {[%clk 0:00:01]}  Bg7 {[%clk 0:00:01]} 8. Qc2 {[%clk 0:00:01]}  O-O {[%clk 0:00:01]} 9. Nxc4 {[%clk 0:00:01]}  Na6 {[%clk 0:00:01]} 10. d3 {[%clk 0:00:01]}  Nb4 {[%clk 0:00:01]} 11. Qd1 {[%clk 0:00:01]}  Bxc4 {[%clk 0:00:01]} 12. dxc4 {[%clk 0:00:01]}  Qxd1 {[%clk 0:00:01]} 13. Rxd1 {[%clk 0:00:01]}  a5 {[%clk 0:00:01]} 14. Be3 {[%clk 0:00:01]}  Nc2 {[%clk 0:00:01]} 15. Rac1 {[%clk 0:00:01]}  Nxe3 {[%clk 0:00:01]} 16. fxe3 {[%clk 0:00:01]}  Ng4 {[%clk 0:00:01]} 17. e4 {[%clk 0:00:01]}  Bh6 {[%clk 0:00:01]} 18. Rc3 {[%clk 0:00:01]}  Be3+ {[%clk 0:00:01]} 19. Rxe3 {[%clk 0:00:01]}  Nxe3 {[%clk 0:00:01]} 20. Rd7 {[%clk 0:00:01]}  Nxc4 {[%clk 0:00:01]} 21. Rxe7 {[%clk 0:00:01]}  Nxb2 {[%clk 0:00:01]} 22. Rxb7 {[%clk 0:00:01]}  Nxa4 {[%clk 0:00:01]} 23. Ne5 {[%clk 0:00:01]}  Nc5 {[%clk 0:00:01]} 24. Rc7 {[%clk 0:00:01]}  a4 {[%clk 0:00:01]} 25. Nxc6 {[%clk 0:00:01]}  a3 {[%clk 0:00:01]} 26. Ne7+ {[%clk 0:00:01]}  Kg7 {[%clk 0:00:01]} 0-1


[Site "https://www.chess.com"]

[Event "Titled Tuesday Blitz May 2 Early 2023"]
[White "Talibov, Shiroghlan"]
[Black "Eidelman, Gabriel"]
[WhiteFideId "13429078"]
[BlackFideId "30910544"]
[WhiteElo "2224"]
[BlackElo "2209"]
[Result "1-0"]
[Round "01"]
[TimeControl "180+2"]
[Date "2023.05.02"]
[WhiteClock "0:00:00"]
[BlackClock "0:00:00"]

1. Nf3 {[%clk 0:00:01]}  d6 {[%clk 0:00:01]} 2. d4 {[%clk 0:00:01]}  g6 {[%clk 0:00:01]} 3. c4 {[%clk 0:00:01]}  Bg7 {[%clk 0:00:01]} 4. Nc3 {[%clk 0:00:01]}  Nd7 {[%clk 0:00:01]} 5. Bg5 {[%clk 0:00:01]}  c5 {[%clk 0:00:01]} 6. e3 {[%clk 0:00:01]}  Ngf6 {[%clk 0:00:01]} 7. Be2 {[%clk 0:00:01]}  O-O {[%clk 0:00:01]} 8. O-O {[%clk 0:00:01]}  b6 {[%clk 0:00:01]} 9. d5 {[%clk 0:00:01]}  a6 {[%clk 0:00:01]} 10. a4 {[%clk 0:00:01]}  Rb8 {[%clk 0:00:01]} 11. e4 {[%clk 0:00:01]}  Ne8 {[%clk 0:00:01]} 12. Re1 {[%clk 0:00:01]}  Nc7 {[%clk 0:00:01]} 13. Qc2 {[%clk 0:00:01]}  Qe8 {[%clk 0:00:01]} 14. Bf1 {[%clk 0:00:01]}  Ne5 {[%clk 0:00:01]} 15. Nd2 {[%clk 0:00:01]}  Bd7 {[%clk 0:00:01]} 16. h3 {[%clk 0:00:01]}  f6 {[%clk 0:00:01]} 17. Be3 {[%clk 0:00:01]}  b5 {[%clk 0:00:01]} 18. axb5 {[%clk 0:00:01]}  axb5 {[%clk 0:00:01]} 19. cxb5 {[%clk 0:00:01]}  Nxb5 {[%clk 0:00:01]} 20. Nxb5 {[%clk 0:00:01]}  Bxb5 {[%clk 0:00:01]} 21. f4 {[%clk 0:00:01]}  Bxf1 {[%clk 0:00:01]} 22. Rxf1 {[%clk 0:00:01]}  Nf7 {[%clk 0:00:01]} 23. Nc4 {[%clk 0:00:01]}  e6 {[%clk 0:00:00]} 24. Rfe1 {[%clk 0:00:01]}  exd5 {[%clk 0:00:00]} 25. exd5 {[%clk 0:00:01]}  Qb5 {[%clk 0:00:00]} 26. f5 {[%clk 0:00:01]}  Qb7 {[%clk 0:00:00]} 27. Rad1 {[%clk 0:00:00]}  Qb3 {[%clk 0:00:00]} 28. Qxb3 {[%clk 0:00:00]}  Rxb3 {[%clk 0:00:00]} 29. Bf4 {[%clk 0:00:00]}  Rd8 {[%clk 0:00:00]} 30. Re6 {[%clk 0:00:00]}  gxf5 {[%clk 0:00:00]} 31. Nxd6 {[%clk 0:00:00]}  Nxd6 {[%clk 0:00:00]} 32. Bxd6 {[%clk 0:00:00]}  Rxb2 {[%clk 0:00:00]} 33. Bxc5 {[%clk 0:00:00]}  Kf7 {[%clk 0:00:00]} 34. Re7+ {[%clk 0:00:00]}  Kg6 {[%clk 0:00:00]} 35. Rd3 {[%clk 0:00:00]}  Bf8 {[%clk 0:00:00]} 36. Rg3+ {[%clk 0:00:00]}  Kh6 {[%clk 0:00:00]} 37. Be3+ {[%clk 0:00:00]}  Kh5 {[%clk 0:00:00]} 38. Rxh7+ {[%clk 0:00:00]} 1-0


[Site "https://www.chess.com"]

[Event "Titled Tuesday Blitz May 2 Early 2023"]
[White "Eynullayev, Altay"]
[Black "Asis Gargatagli, Hipolito"]
[WhiteFideId "13413562"]
[BlackFideId "2260735"]
[WhiteElo "2114"]
[BlackElo "2557"]
[Result "0-1"]
[Round "01"]
[TimeControl "180+2"]
[Date "2023.05.02"]
[WhiteClock "0:00:01"]
[BlackClock "0:00:00"]

1. e4 {[%clk 0:00:01]}  c5 {[%clk 0:00:01]} 2. Nf3 {[%clk 0:00:01]}  d6 {[%clk 0:00:01]} 3. d4 {[%clk 0:00:01]}  cxd4 {[%clk 0:00:01]} 4. Nxd4 {[%clk 0:00:01]}  Nf6 {[%clk 0:00:01]} 5. Nc3 {[%clk 0:00:01]}  a6 {[%clk 0:00:01]} 6. g3 {[%clk 0:00:01]}  g6 {[%clk 0:00:01]} 7. Bg2 {[%clk 0:00:01]}  Bg7 {[%clk 0:00:01]} 8. O-O {[%clk 0:00:01]}  O-O {[%clk 0:00:01]} 9. h3 {[%clk 0:00:01]}  Nc6 {[%clk 0:00:01]} 10. Be3 {[%clk 0:00:01]}  Bd7 {[%clk 0:00:01]} 11. Nd5 {[%clk 0:00:01]}  Rc8 {[%clk 0:00:01]} 12. c3 {[%clk 0:00:01]}  Ne5 {[%clk 0:00:01]} 13. Qe2 {[%clk 0:00:01]}  Nc4 {[%clk 0:00:01]} 14. Bg5 {[%clk 0:00:01]}  e6 {[%clk 0:00:01]} 15. Nxf6+ {[%clk 0:00:01]}  Bxf6 {[%clk 0:00:01]} 16. Bxf6 {[%clk 0:00:01]}  Qxf6 {[%clk 0:00:01]} 17. Rad1 {[%clk 0:00:01]}  b5 {[%clk 0:00:01]} 18. Nc2 {[%clk 0:00:01]}  Nxb2 {[%clk 0:00:01]} 19. Rxd6 {[%clk 0:00:01]}  Qe7 {[%clk 0:00:01]} 20. Rxa6 {[%clk 0:00:01]}  Na4 {[%clk 0:00:01]} 21. Qd2 {[%clk 0:00:01]}  Nxc3 {[%clk 0:00:01]} 22. Ra7 {[%clk 0:00:01]}  Rfd8 {[%clk 0:00:01]} 23. Nb4 {[%clk 0:00:01]}  Qxb4 {[%clk 0:00:00]} 24. Rxd7 {[%clk 0:00:01]}  Ne2+ {[%clk 0:00:00]} 0-1


[Site "https://www.chess.com"]

[Event "Titled Tuesday Blitz May 2 Early 2023"]
[White "Ohanyan, Emin"]
[Black "Lopez Gracia, Fernando"]
[WhiteFideId "13312022"]
[BlackFideId "2207184"]
[WhiteElo "2402"]
[BlackElo "2255"]
[Result "1-0"]
[Round "01"]
[TimeControl "180+2"]
[Date "2023.05.02"]
[WhiteClock "0:00:00"]
[BlackClock "0:00:00"]

1. e4 {[%clk 0:00:01]}  e5 {[%clk 0:00:01]} 2. Nc3 {[%clk 0:00:01]}  Nf6 {[%clk 0:00:01]} 3. Bc4 {[%clk 0:00:01]}  Bc5 {[%clk 0:00:01]} 4. d3 {[%clk 0:00:01]}  O-O {[%clk 0:00:01]} 5. f4 {[%clk 0:00:01]}  d5 {[%clk 0:00:01]} 6. Nxd5 {[%clk 0:00:01]}  Be6 {[%clk 0:00:01]} 7. Nf3 {[%clk 0:00:01]}  Bxd5 {[%clk 0:00:01]} 8. Bxd5 {[%clk 0:00:01]}  Nxd5 {[%clk 0:00:01]} 9. exd5 {[%clk 0:00:01]}  exf4 {[%clk 0:00:01]} 10. d4 {[%clk 0:00:01]}  Re8+ {[%clk 0:00:01]} 11. Kf2 {[%clk 0:00:01]}  Bd6 {[%clk 0:00:01]} 12. c4 {[%clk 0:00:01]}  b6 {[%clk 0:00:01]} 13. Re1 {[%clk 0:00:01]}  Nd7 {[%clk 0:00:01]} 14. Rxe8+ {[%clk 0:00:01]}  Qxe8 {[%clk 0:00:01]} 15. Qe2 {[%clk 0:00:01]}  Qxe2+ {[%clk 0:00:01]} 16. Kxe2 {[%clk 0:00:01]}  Re8+ {[%clk 0:00:01]} 17. Kd3 {[%clk 0:00:00]}  f6 {[%clk 0:00:01]} 18. h4 {[%clk 0:00:00]}  g6 {[%clk 0:00:01]} 19. Bd2 {[%clk 0:00:00]}  h6 {[%clk 0:00:01]} 20. b4 {[%clk 0:00:00]}  g5 {[%clk 0:00:01]} 21. c5 {[%clk 0:00:00]}  Bf8 {[%clk 0:00:01]} 22. c6 {[%clk 0:00:00]}  Nb8 {[%clk 0:00:00]} 23. b5 {[%clk 0:00:00]}  Kf7 {[%clk 0:00:00]} 24. a4 {[%clk 0:00:00]}  a6 {[%clk 0:00:00]} 25. Rh1 {[%clk 0:00:00]}  g4 {[%clk 0:00:00]} 26. Nh2 {[%clk 0:00:00]}  g3 {[%clk 0:00:00]} 27. Nf3 {[%clk 0:00:00]}  Bd6 {[%clk 0:00:00]} 28. h5 {[%clk 0:00:00]}  Rd8 {[%clk 0:00:00]} 29. Rh4 {[%clk 0:00:00]}  axb5 {[%clk 0:00:00]} 30. axb5 {[%clk 0:00:00]}  Ke7 {[%clk 0:00:00]} 31. Kc4 {[%clk 0:00:00]}  Nd7 {[%clk 0:00:00]} 32. cxd7 {[%clk 0:00:00]}  Ra8 {[%clk 0:00:00]} 33. Bxf4 {[%clk 0:00:00]}  Ra4+ {[%clk 0:00:00]} 34. Kd3 {[%clk 0:00:00]}  Ra3+ {[%clk 0:00:00]} 35. Ke4 {[%clk 0:00:00]}  Kxd7 {[%clk 0:00:00]} 36. Rg4 {[%clk 0:00:00]}  Bxf4 {[%clk 0:00:00]} 37. Kxf4 {[%clk 0:00:00]}  Kd6 {[%clk 0:00:00]} 38. Kxg3 {[%clk 0:00:00]}  Kxd5 {[%clk 0:00:00]} 39. Rg6 {[%clk 0:00:00]}  Ke6 {[%clk 0:00:00]} 40. Rxh6 {[%clk 0:00:00]}  Rb3 {[%clk 0:00:00]} 41. Rh7 {[%clk 0:00:00]}  Rxb5 {[%clk 0:00:00]} 42. h6 {[%clk 0:00:00]}  c5 {[%clk 0:00:00]} 43. Rh8 {[%clk 0:00:00]}  Kf7 {[%clk 0:00:00]} 44. dxc5 {[%clk 0:00:00]}  bxc5 {[%clk 0:00:00]} 45. Kg4 {[%clk 0:00:00]}  Kg6 {[%clk 0:00:00]} 46. Nh4+ {[%clk 0:00:00]}  Kf7 {[%clk 0:00:00]} 47. Rc8 {[%clk 0:00:00]}  Rb4+ {[%clk 0:00:00]} 48. Kh5 {[%clk 0:00:00]}  Rd4 {[%clk 0:00:00]} 49. h7 {[%clk 0:00:00]}  Rd5+ {[%clk 0:00:00]} 50. Kh6 {[%clk 0:00:00]}  f5 {[%clk 0:00:00]} 51. h8=Q {[%clk 0:00:00]}  Ke6 {[%clk 0:00:00]} 52. Kg6 {[%clk 0:00:00]}  Rd6 {[%clk 0:00:00]} 53. Nxf5 {[%clk 0:00:00]}  Kd5+ {[%clk 0:00:00]} 54. Nxd6 {[%clk 0:00:00]}  Ke6 {[%clk 0:00:00]} 55. Qf6+ {[%clk 0:00:00]}  Kd5 {[%clk 0:00:00]} 56. Qf5+ {[%clk 0:00:00]}  Kxd6 {[%clk 0:00:00]} 57. Qxc5+ {[%clk 0:00:00]}  Kd7 {[%clk 0:00:00]} 58. Qf5+ {[%clk 0:00:00]}  Kd6 {[%clk 0:00:00]} 59. Qf6+ {[%clk 0:00:00]}  Kd7 {[%clk 0:00:00]} 60. Qc6+ {[%clk 0:00:00]}  Ke7 {[%clk 0:00:00]} 61. Re8# {[%clk 0:00:00]} 1-0


[Site "https://www.chess.com"]

[Event "Titled Tuesday Blitz May 2 Early 2023"]
[White "Stanojevic, Ilija"]
[Black "Mikhailovsky, Vladimir"]
[WhiteFideId "959995"]
[BlackFideId "34105414"]
[WhiteElo "2138"]
[BlackElo "2275"]
[Result "0-1"]
[Round "01"]
[TimeControl "180+2"]
[Date "2023.05.02"]
[WhiteClock "0:00:00"]
[BlackClock "0:00:00"]

1. d4 {[%clk 0:00:01]}  d5 {[%clk 0:00:01]} 2. c4 {[%clk 0:00:01]}  e6 {[%clk 0:00:01]} 3. Nf3 {[%clk 0:00:01]}  Nf6 {[%clk 0:00:01]} 4. g3 {[%clk 0:00:01]}  Bb4+ {[%clk 0:00:01]} 5. Nbd2 {[%clk 0:00:01]}  O-O {[%clk 0:00:01]} 6. Bg2 {[%clk 0:00:01]}  dxc4 {[%clk 0:00:01]} 7. Qc2 {[%clk 0:00:01]}  b5 {[%clk 0:00:01]} 8. a4 {[%clk 0:00:01]}  c6 {[%clk 0:00:01]} 9. axb5 {[%clk 0:00:01]}  cxb5 {[%clk 0:00:01]} 10. Ng5 {[%clk 0:00:01]}  h6 {[%clk 0:00:01]} 11. h4 {[%clk 0:00:01]}  g6 {[%clk 0:00:00]} 12. Bxa8 {[%clk 0:00:01]}  hxg5 {[%clk 0:00:00]} 13. hxg5 {[%clk 0:00:01]}  Nh7 {[%clk 0:00:00]} 14. Kf1 {[%clk 0:00:01]}  Nxg5 {[%clk 0:00:00]} 15. Nf3 {[%clk 0:00:01]}  Nxf3 {[%clk 0:00:00]} 16. Bxf3 {[%clk 0:00:01]}  Qxd4 {[%clk 0:00:00]} 17. Be3 {[%clk 0:00:01]}  Qf6 {[%clk 0:00:00]} 18. Rxa7 {[%clk 0:00:01]}  Nd7 {[%clk 0:00:00]} 19. Qd1 {[%clk 0:00:01]}  Rd8 {[%clk 0:00:00]} 20. Ra8 {[%clk 0:00:01]}  Ne5 {[%clk 0:00:00]} 21. Bd4 {[%clk 0:00:00]}  Bc5 {[%clk 0:00:00]} 22. Bb7 {[%clk 0:00:00]}  Bxd4 {[%clk 0:00:00]} 23. e3 {[%clk 0:00:00]}  Bb6 {[%clk 0:00:00]} 24. Rxc8 {[%clk 0:00:00]}  Rxc8 {[%clk 0:00:00]} 25. Bxc8 {[%clk 0:00:00]}  Bxe3 {[%clk 0:00:00]} 26. Qe2 {[%clk 0:00:00]}  Bd4 {[%clk 0:00:00]} 27. Kg2 {[%clk 0:00:00]}  Nd3 {[%clk 0:00:00]} 28. Ba6 {[%clk 0:00:00]}  Qf5 {[%clk 0:00:00]} 29. Rf1 {[%clk 0:00:00]}  Nxb2 {[%clk 0:00:00]} 30. Bxb5 {[%clk 0:00:00]}  Qxb5 {[%clk 0:00:00]} 31. Rh1 {[%clk 0:00:00]}  Qd5+ {[%clk 0:00:00]} 32. f3 {[%clk 0:00:00]}  Nd3 {[%clk 0:00:00]} 33. Qa2 {[%clk 0:00:00]}  Kg7 {[%clk 0:00:00]} 34. Qa5 {[%clk 0:00:00]}  Qxa5 {[%clk 0:00:00]} 35. Rf1 {[%clk 0:00:00]}  Qd2+ {[%clk 0:00:00]} 36. Kh3 {[%clk 0:00:00]}  Qe3 {[%clk 0:00:00]} 37. Kh4 {[%clk 0:00:00]}  c3 {[%clk 0:00:00]} 0-1


[Site "https://www.chess.com"]